{"text_format":"3","workbook":"xlsx","n_sheets":3,"sheets":["Začetek","Mesečni proračun za študij","izračuni_grafikon"],"not_rendered":{"charts":4,"defined_names":19},"read":"whole","date_system":"1900"}

{"sheet":"Začetek","index":0,"n_rows":7,"n_cols":2,"rows_kept":7}
[null,"O TEJ PREDLOGI"]
[null,"S tem delovnim listom mesečni proračun za študij lahko spremljate prihodke, stroške in denarni tok."]
[null,"Vnesite mesečne prihodke in stroške, da izračunate skupne prihodke in stroške."]
[null,"Denarni tok je izračunan samodejno in grafikon denarni tok je samodejno posodobljen."]
[null,"Z drsnikom si lahko ogledate grafikone za prihodke, stroške in denarni tok za različne mesece in leta."]
[null,"Opomba: "]
[null,"Dodatna navodila so na voljo v stolpcu A na delovnem listu. To besedilo je bilo namenoma skrito. Če želite besedilo premakniti, izberite stolpec A, nato izberite še IZBRIŠI. Če želite besedilo razkriti, izberite stolpec A, nato zamenjajte barvo pisave."]

{"sheet":"Mesečni proračun za študij","index":1,"n_rows":72,"n_cols":16,"rows_kept":72,"merged":[[5,1,14,3],[5,4,14,11],[5,12,13,15],[15,1,19,15],[20,1,21,15]]}
["Na tem delovnem listu ustvarite mesečni proračun za študij. Naslov tega delovnega lista je v celici na desni in v celici B1. Koristna navodila za uporabo tega delovnega lista najdete v celicah v tem stolpcu. Naslednji korak je v celici A4.","Mesečni proračun za študij"]
[]
[]
["Oznaka za prihodek je v celici na desni, oznaka za stroške je v celici E4, oznaka za denarni tok pa je v celici M4.",{"$f":"izračuni_grafikon!$D$6","v":"january – dohodek:"},null,null,{"$f":"izračuni_grafikon!$D$7","v":"january – strošek:"},{"$nulls":7},{"$f":"izračuni_grafikon!$D$8","v":"january – denarni tok:"}]
["Prihodek je samodejno posodobljen v celici na desni, stroški v celici E5 in denarni tok v celici M5.",{"$f":"\" \"&izračuni_grafikon!$F$6","v":" 1225.0 €"},null,null,{"$f":"\" \"&izračuni_grafikon!$F$7","v":" 1056.0 €"},{"$nulls":7},{"$f":"\" \"&izračuni_grafikon!$F$8","v":" 169.0 €"}]
["Kolobarni grafikon s povzetkom prihodkov v celici na desni, povzetek o stroških v celici E6 in palični grafikon s prikazom pozitivnega in negativnega denarnega toka v celici M6 so samodejno posodobljeni. Naslednji korak je v celici A17.","Tortni grafikon, ki prikazuje povzetek prihodkov za izbrani mesec ali leto je v tej celici.",null,null,"Tortni grafikon, ki prikazuje povzetek stroškov za izbrani mesec ali leto je v tej celici.",{"$nulls":7},"Palični grafikon, ki prikazuje pozitiven in negativen denarni tok za izbrani mesec ali leto je v tej celici."]
{"$rows_empty":9}
[null,"Črtni grafikon, ki prikazuje denarni tok za izbrani mesec ali leto je v tej celici."]
["Črtni grafikon denarnega toka je v celici na desni. Naslednji korak je v celici A21."]
[]
[]
[]
["Izberite drsnik na desni, da pridobite podatke in grafikone za prihodke, stroške in denarni tok za različne mesece ali leta. Naslednji korak je v celici A25.","Drsnik je v tej celici."]
[]
[]
[]
["Izberite mesec v celici na desni. Pritisnite ALT + PUŠČICA DOL za možnosti, nato pa PUŠČICA DOL in ENTER, da izberete.","JAN"]
["Izbrano obdobje je samodejno posodobljeno v celici P26.",{"$nulls":14},{"$f":"IzbranoObdobje","v":"JAN "}]
["Oznake so v tej vrstici, oznaka za mesečna denarna sredstva po poravnavi stroškov je v celici na desni, meseci so v celicah C27–N27, leto je v celici O27 in odstotek povišanja v celici P27.","Mesečna denarna sredstva po poravnavi stroškov",{"$f":"PrviMesec","v":"JAN "},{"$f":"NaslednjiMesec","v":"FEB "},"MAR ","APR ","MAY ","JUN ","JUL ","AUG ","SEP ","OCT ","NOV ","DEC ","LETO  ","% PRIH "]
["Oznaka za denarni tok je v celici na desni. Denarni tok za posamezne mesece je samodejno izračunan v celicah C28–N28, letni znesek v celici O28, odstotek povišanja pa v celici P28. Grafikon sparkline je samodejno posodobljen v celici Q28.","Denarni tok",{"$f":"C37-C72","v":169},69,192,199,204,{"v":-771,"d":"-771 "},124,154,{"v":-721,"d":"-721 "},109,34,{"v":-61,"d":"-61 "},{"$f":"SUM(C28:N28)","v":{"v":-299,"d":"-299 "}},{"$f":"INDEX($C28:$O28,,IzbranoObdobjeStolpec)/INDEX($C$37:$O$37,,IzbranoObdobjeStolpec)","v":{"v":0.13795918367346938,"d":"13.8%"}}]
["Oznaka za kumulativni denarni tok je v celici na desni. Kumulativni denarni tok za posamezne mesece je samodejno izračunan v celicah C29–N29, letni znesek v celici O29, odstotek povišanja pa v celici P29. Grafikon sparkline je samodejno posodobljen v celici Q29. Naslednji korak je v celici A31.","Kumulativni denarni tok",{"$f":"SUM($C$28:C$28)","v":169},{"$f":"SUM($C$28:D$28)","v":238},{"$f":"SUM($C$28:E$28)","v":430},{"$f":"SUM($C$28:F$28)","v":629},{"$f":"SUM($C$28:G$28)","v":833},{"$f":"SUM($C$28:H$28)","v":62},{"$f":"SUM($C$28:I$28)","v":186},{"$f":"SUM($C$28:J$28)","v":340},{"$f":"SUM($C$28:K$28)","v":{"v":-381,"d":"-381 "}},{"$f":"SUM($C$28:L$28)","v":{"v":-272,"d":"-272 "}},{"$f":"SUM($C$28:M$28)","v":{"v":-238,"d":"-238 "}},{"$f":"SUM($C$28:N$28)","v":{"v":-299,"d":"-299 "}}]
[]
["Oznaka za mesečni prihodek je v celici na desni, oznaka za mesece je v celicah C31–N31, za leto v celici O31, oznaka za odstotek povišanja pa je v celici P31. Elemente mesečnih prihodkov vnesite v celice B32–B36, mesečne zneske pa vnesite v celice C32–N36. Letni prihodek je samodejno izračunan v celicah O32–O36, odstotek povišanja pa v celicah P32–P36. Naslednji korak je v celici A37.","MESEČNI PRIHODKI",{"$f":"PrviMesec","v":"JAN "},{"$f":"NaslednjiMesec","v":"FEB "},"MAR ","APR ","MAY ","JUN ","JUL ","AUG ","SEP ","OCT ","NOV ","DEC ","LETO  ","% PRIH "]
[null,"Pridobljena finančna pomoč (skladi, štipendije, posojila)",0,0,750,750,750,750,750,750,750,750,750,750,{"$f":"SUM(C32:N32)","v":{"v":7500,"d":"7,500"}},{"$f":"INDEX($C32:$O32,,IzbranoObdobjeStolpec)/INDEX($C$37:$O$37,,IzbranoObdobjeStolpec)","v":{"v":0,"d":"0.0%"}}]
[null,"Plače po obdavčitvi",450,450,450,450,450,450,450,450,550,350,350,350,{"v":5200,"d":"5,200"},{"$f":"INDEX($C33:$O33,,IzbranoObdobjeStolpec)/INDEX($C$37:$O$37,,IzbranoObdobjeStolpec)","v":{"v":0.3673469387755102,"d":"36.7%"}}]
[null,"Finančna pomoč družine",200,200,{"v":1000,"d":"1,000"},350,350,350,350,350,350,350,350,350,{"v":4550,"d":"4,550"},{"$f":"INDEX($C34:$O34,,IzbranoObdobjeStolpec)/INDEX($C$37:$O$37,,IzbranoObdobjeStolpec)","v":{"v":0.16326530612244897,"d":"16.3%"}}]
[null,"Dvig prihrankov",500,350,150,0,0,0,0,0,0,0,0,0,{"v":1000,"d":"1,000"},{"$f":"INDEX($C35:$O35,,IzbranoObdobjeStolpec)/INDEX($C$37:$O$37,,IzbranoObdobjeStolpec)","v":{"v":0.40816326530612246,"d":"40.8%"}}]
[null,"Drugo (preživnina, državna podpora, darila itd.)",75,75,75,75,75,75,75,75,75,75,75,75,900,{"$f":"INDEX($C36:$O36,,IzbranoObdobjeStolpec)/INDEX($C$37:$O$37,,IzbranoObdobjeStolpec)","v":{"v":0.061224489795918366,"d":"6.1%"}}]
["Oznaka za prihodek skupaj je samodejno izračunan. Prihodek skupaj za posamezne mesece je samodejno izračunan v celicah C37–N37, letni prihodek v celici O37, odstotek povišanja pa v celici P37. Grafikon sparkline je samodejno posodobljen v celici Q37. Naslednji korak je v celici A39.","SKUPAJ PRIHODEK",{"$f":"SUM(C32:C36)","v":{"v":1225,"d":"1,225"}},{"v":1075,"d":"1,075"},{"v":2425,"d":"2,425"},{"v":1625,"d":"1,625"},{"v":1625,"d":"1,625"},{"v":1625,"d":"1,625"},{"v":1625,"d":"1,625"},{"v":1625,"d":"1,625"},{"v":1725,"d":"1,725"},{"v":1525,"d":"1,525"},{"v":1525,"d":"1,525"},{"v":1525,"d":"1,525"},{"v":19150,"d":"19,150"},{"$f":"INDEX($C37:$O37,,IzbranoObdobjeStolpec)/INDEX($C$37:$O$37,,IzbranoObdobjeStolpec)","v":{"v":1,"d":"100.0%"}}]
[]
["Oznaka za mesečni strošek je v celici na desni, oznaka za mesece je v celicah C39–N39, za leto v celici O39, oznaka za odstotek povišanja pa je v celici P39.","MESEČNI STROŠKI",{"$f":"PrviMesec","v":"JAN "},{"$f":"NaslednjiMesec","v":"FEB "},"MAR ","APR ","MAY ","JUN ","JUL ","AUG ","SEP ","OCT ","NOV ","DEC ","LETO  ","% PRIH "]
["Vnesite oz. spremenite element stroška v celici na desni, mesečne zneske pa v celicah C40–N43. Letni znesek je samodejno izračunan v celicah O40–O43, odstotek povišanja pa v celicah P40–P43. Grafikon sparkline je samodejno posodobljen v celici Q40. Naslednji korak je v celici A45.","Stroški bivanja",{"$f":"SUM(C41:C43)","v":565},565,565,565,565,565,565,565,565,565,565,565,{"$f":"SUM(C40:N40)","v":{"v":6780,"d":"6,780"}},{"$f":"INDEX($C40:$O40,,IzbranoObdobjeStolpec)/INDEX($C$72:$O$72,,IzbranoObdobjeStolpec)","v":{"v":0.5350378787878788,"d":"53.5%"}}]
[null,null,315,315,315,315,315,315,315,315,315,315,315,315,{"$f":"SUM(C41:N41)","v":{"v":3780,"d":"3,780"}},{"$f":"INDEX($C41:$O41,,IzbranoObdobjeStolpec)/INDEX($C$72:$O$72,,IzbranoObdobjeStolpec)","v":{"v":0.29829545454545453,"d":"29.8%"}}]
[null,null,200,200,200,200,200,200,200,200,200,200,200,200,{"$f":"SUM(C42:N42)","v":{"v":2400,"d":"2,400"}},{"$f":"INDEX($C42:$O42,,IzbranoObdobjeStolpec)/INDEX($C$72:$O$72,,IzbranoObdobjeStolpec)","v":{"v":0.1893939393939394,"d":"18.9%"}}]
[null,null,50,50,50,50,50,50,50,50,50,50,50,50,{"$f":"SUM(C43:N43)","v":600},{"$f":"INDEX($C43:$O43,,IzbranoObdobjeStolpec)/INDEX($C$72:$O$72,,IzbranoObdobjeStolpec)","v":{"v":0.04734848484848485,"d":"4.7%"}}]
[]
["Vnesite oz. posodobite element stroška v celici na desni, mesečne zneske pa v celicah C45–N47. Letni znesek je samodejno izračunan v celicah O45–O47, odstotek povišanja pa v celicah P45–P47. Grafikon sparkline je samodejno posodobljen v celici Q45. Naslednji korak je v celici A49.","Šolnina in pristojbine",{"$f":"SUM(C46:C47)","v":0},0,750,0,0,650,0,0,650,0,0,0,{"$f":"SUM(C45:N45)","v":{"v":2050,"d":"2,050"}},{"$f":"INDEX($C45:$O45,,IzbranoObdobjeStolpec)/INDEX($C$72:$O$72,,IzbranoObdobjeStolpec)","v":{"v":0,"d":"0.0%"}}]
[null,null,0,0,500,0,0,500,0,0,500,0,0,0,{"$f":"SUM(C46:N46)","v":{"v":1500,"d":"1,500"}},{"$f":"INDEX($C46:$O46,,IzbranoObdobjeStolpec)/INDEX($C$72:$O$72,,IzbranoObdobjeStolpec)","v":{"v":0,"d":"0.0%"}}]
[null,null,0,0,250,0,0,150,0,0,150,0,0,0,{"$f":"SUM(C47:N47)","v":550},{"$f":"INDEX($C47:$O47,,IzbranoObdobjeStolpec)/INDEX($C$72:$O$72,,IzbranoObdobjeStolpec)","v":{"v":0,"d":"0.0%"}}]
[]
["Vnesite oz. spremenite element stroška v celici na desni, mesečne zneske pa v celicah C49–N51. Letni znesek je samodejno izračunan v celicah O49–O51, odstotek povišanja pa v celicah P49–P51. Grafikon sparkline je samodejno posodobljen v celici Q49. Naslednji korak je v celici A53.","Knjige in potrebščine",{"$f":"SUM(C50:C51)","v":0},0,325,20,20,325,10,10,400,15,15,15,{"$f":"SUM(C49:N49)","v":{"v":1155,"d":"1,155"}},{"$f":"INDEX($C49:$O49,,IzbranoObdobjeStolpec)/INDEX($C$72:$O$72,,IzbranoObdobjeStolpec)","v":{"v":0,"d":"0.0%"}}]
[null,null,0,0,225,0,0,275,0,0,325,0,0,0,{"$f":"SUM(C50:N50)","v":825},{"$f":"INDEX($C50:$O50,,IzbranoObdobjeStolpec)/INDEX($C$72:$O$72,,IzbranoObdobjeStolpec)","v":{"v":0,"d":"0.0%"}}]
[null,null,0,0,100,20,20,50,10,10,75,15,15,15,{"$f":"SUM(C51:N51)","v":330},{"$f":"INDEX($C51:$O51,,IzbranoObdobjeStolpec)/INDEX($C$72:$O$72,,IzbranoObdobjeStolpec)","v":{"v":0,"d":"0.0%"}}]
[]
["Vnesite oz. posodobite element stroška v celici na desni, mesečne zneske pa v celicah C53–N57. Letni znesek je samodejno izračunan v celicah O53–O57, odstotek povišanja pa v celicah P53–P57. Grafikon sparkline je samodejno posodobljen v celici Q53. Naslednji korak je v celici A59.","Prevoz",{"$f":"SUM(C54:C57)","v":224},174,174,219,174,174,274,219,174,174,224,269,{"$f":"SUM(C53:N53)","v":{"v":2473,"d":"2,473"}},{"$f":"INDEX($C53:$O53,,IzbranoObdobjeStolpec)/INDEX($C$72:$O$72,,IzbranoObdobjeStolpec)","v":{"v":0.21212121212121213,"d":"21.2%"}}]
[null,null,30,30,30,75,30,30,30,75,30,30,30,75,{"$f":"SUM(C54:N54)","v":495},{"$f":"INDEX($C54:$O54,,IzbranoObdobjeStolpec)/INDEX($C$72:$O$72,,IzbranoObdobjeStolpec)","v":{"v":0.028409090909090908,"d":"2.8%"}}]
[null,null,129,129,129,129,129,129,129,129,129,129,129,129,{"$f":"SUM(C55:N55)","v":{"v":1548,"d":"1,548"}},{"$f":"INDEX($C55:$O55,,IzbranoObdobjeStolpec)/INDEX($C$72:$O$72,,IzbranoObdobjeStolpec)","v":{"v":0.12215909090909091,"d":"12.2%"}}]
[null,null,15,15,15,15,15,15,15,15,15,15,15,15,{"$f":"SUM(C56:N56)","v":180},{"$f":"INDEX($C56:$O56,,IzbranoObdobjeStolpec)/INDEX($C$72:$O$72,,IzbranoObdobjeStolpec)","v":{"v":0.014204545454545454,"d":"1.4%"}}]
[null,null,50,0,0,0,0,0,100,0,0,0,50,50,{"$f":"SUM(C57:N57)","v":250},{"$f":"INDEX($C57:$O57,,IzbranoObdobjeStolpec)/INDEX($C$72:$O$72,,IzbranoObdobjeStolpec)","v":{"v":0.04734848484848485,"d":"4.7%"}}]
[]
["Vnesite oz. spremenite element stroška v celici na desni, mesečne zneske pa v celicah C59–N65. Letni znesek je samodejno izračunan v celicah O59–O65, odstotek povišanja pa v celicah P59–P65. Grafikon sparkline je samodejno posodobljen v celici Q59. Naslednji korak je v celici A67.","Diskrecijski stroški",{"$f":"SUM(C60:C65)","v":69},69,169,369,419,444,419,419,394,394,419,469,{"$f":"SUM(C59:N59)","v":{"v":4053,"d":"4,053"}},{"$f":"INDEX($C59:$O59,,IzbranoObdobjeStolpec)/INDEX($C$72:$O$72,,IzbranoObdobjeStolpec)","v":{"v":0.06534090909090909,"d":"6.5%"}}]
[null,null,0,0,0,50,100,100,100,100,75,75,100,100,800,{"$f":"INDEX($C60:$O60,,IzbranoObdobjeStolpec)/INDEX($C$72:$O$72,,IzbranoObdobjeStolpec)","v":{"v":0,"d":"0.0%"}}]
[null,null,69,69,69,69,69,69,69,69,69,69,69,69,828,{"$f":"INDEX($C61:$O61,,IzbranoObdobjeStolpec)/INDEX($C$72:$O$72,,IzbranoObdobjeStolpec)","v":{"v":0.06534090909090909,"d":"6.5%"}}]
[null,null,0,0,0,0,0,25,0,0,0,0,0,50,75,{"$f":"INDEX($C62:$O62,,IzbranoObdobjeStolpec)/INDEX($C$72:$O$72,,IzbranoObdobjeStolpec)","v":{"v":0,"d":"0.0%"}}]
[null,null,0,0,100,100,100,100,100,100,100,100,100,100,{"v":1000,"d":"1,000"},{"$f":"INDEX($C63:$O63,,IzbranoObdobjeStolpec)/INDEX($C$72:$O$72,,IzbranoObdobjeStolpec)","v":{"v":0,"d":"0.0%"}}]
[null,null,0,0,0,50,50,50,50,50,50,50,50,50,450,{"$f":"INDEX($C64:$O64,,IzbranoObdobjeStolpec)/INDEX($C$72:$O$72,,IzbranoObdobjeStolpec)","v":{"v":0,"d":"0.0%"}}]
[null,null,0,0,0,100,100,100,100,100,100,100,100,100,900,{"$f":"INDEX($C65:$O65,,IzbranoObdobjeStolpec)/INDEX($C$72:$O$72,,IzbranoObdobjeStolpec)","v":{"v":0,"d":"0.0%"}}]
[]
["Vnesite oz. posodobite element stroška v celici na desni, mesečne zneske pa v celicah C67–N70. Letni znesek je samodejno izračunan v celicah O67–O70, odstotek povišanja pa v celicah P67–P70. Grafikon sparkline je samodejno posodobljen v celici Q67. Naslednji korak je v celici A72.","Drugi stroški",{"$f":"SUM(C68:C70)","v":198},{"$f":"SUM(D68:D70)","v":198},250,253,243,238,233,258,263,268,268,268,{"$f":"SUM(C67:N67)","v":{"v":2938,"d":"2,938"}},{"$f":"INDEX($C67:$O67,,IzbranoObdobjeStolpec)/INDEX($C$72:$O$72,,IzbranoObdobjeStolpec)","v":{"v":0.1875,"d":"18.8%"}}]
[null,null,123,123,123,123,123,123,123,123,123,123,123,123,{"$f":"SUM(C68:N68)","v":{"v":1476,"d":"1,476"}},{"$f":"INDEX($C68:$O68,,IzbranoObdobjeStolpec)/INDEX($C$72:$O$72,,IzbranoObdobjeStolpec)","v":{"v":0.11647727272727272,"d":"11.6%"}}]
[null,null,0,0,52,55,45,40,35,60,65,70,70,70,{"$f":"SUM(C69:N69)","v":562},{"$f":"INDEX($C69:$O69,,IzbranoObdobjeStolpec)/INDEX($C$72:$O$72,,IzbranoObdobjeStolpec)","v":{"v":0,"d":"0.0%"}}]
[null,null,75,75,75,75,75,75,75,75,75,75,75,75,{"$f":"SUM(C70:N70)","v":900},{"$f":"INDEX($C70:$O70,,IzbranoObdobjeStolpec)/INDEX($C$72:$O$72,,IzbranoObdobjeStolpec)","v":{"v":0.07102272727272728,"d":"7.1%"}}]
[]
["Oznaka za stroške skupaj je v celici na desni. Skupni znesek stroškov za posamezne mesece je samodejno izračunan v celicah C72–N72, letni stroški so izračunani v celici O72, odstotek povišanja pa v celici P72. Grafikon sparkline je samodejno posodobljen v celici Q72.","SKUPAJ STROŠKI",{"$f":"SUM(C40,C45,C49,C53,C59,C67)","v":{"v":1056,"d":"1,056"}},{"v":1006,"d":"1,006"},{"v":2233,"d":"2,233"},{"v":1426,"d":"1,426"},{"v":1421,"d":"1,421"},{"v":2396,"d":"2,396"},{"v":1501,"d":"1,501"},{"v":1471,"d":"1,471"},{"v":2446,"d":"2,446"},{"v":1416,"d":"1,416"},{"v":1491,"d":"1,491"},{"v":1586,"d":"1,586"},{"$f":"SUM(C72:N72)","v":{"v":19449,"d":"19,449"}},{"$f":"INDEX($C72:$O72,,IzbranoObdobjeStolpec)/INDEX($C$72:$O$72,,IzbranoObdobjeStolpec)","v":{"v":1,"d":"100.0%"}}]

{"sheet":"izračuni_grafikon","index":2,"n_rows":23,"n_cols":16,"rows_kept":23,"hidden":true}
["***Ta list naj ostane SKRIT***"]
[]
[{"$nulls":3},{"$f":"IFERROR(LOWER(TEXT(VALUE(IzbranoObdobje&\" 1\"),\"mmmm\")),\"leto\")","v":"january"}]
[]
[{"$nulls":3},"Naslovi dinamičnega grafikona"]
[{"$nulls":3},{"$f":"D3&\" –\"&\" dohodek:\"","v":"january – dohodek:"},null,{"$f":"TEXT(INDEX('Mesečni proračun za študij'!$C$37:$O$37,,IzbranoObdobjeStolpec),\"#.##0 €\")","v":"1225.0 €"}]
[{"$nulls":3},{"$f":"D3&\" –\"&\" strošek:\"","v":"january – strošek:"},null,{"$f":"TEXT(INDEX('Mesečni proračun za študij'!$C$72:$O$72,,IzbranoObdobjeStolpec),\"#.##0 €\")","v":"1056.0 €"}]
[{"$nulls":3},{"$f":"D3&\" –\"&\" denarni tok:\"","v":"january – denarni tok:"},{"$f":"INDEX('Mesečni proračun za študij'!C28:O28,DrsniTrakVrednost)","v":169},{"$f":"TEXT(E8,\"#.##0 €\")","v":"169.0 €"}]
[]
[]
[]
[{"$nulls":3},{"$f":"LOWER('Mesečni proračun za študij'!C27)","v":"jan "},{"$f":"LOWER('Mesečni proračun za študij'!D27)","v":"feb "},{"$f":"LOWER('Mesečni proračun za študij'!E27)","v":"mar "},{"$f":"LOWER('Mesečni proračun za študij'!F27)","v":"apr "},{"$f":"LOWER('Mesečni proračun za študij'!G27)","v":"may "},{"$f":"LOWER('Mesečni proračun za študij'!H27)","v":"jun "},{"$f":"LOWER('Mesečni proračun za študij'!I27)","v":"jul "},{"$f":"LOWER('Mesečni proračun za študij'!J27)","v":"aug "},{"$f":"LOWER('Mesečni proračun za študij'!K27)","v":"sep "},{"$f":"LOWER('Mesečni proračun za študij'!L27)","v":"oct "},{"$f":"LOWER('Mesečni proračun za študij'!M27)","v":"nov "},{"$f":"LOWER('Mesečni proračun za študij'!N27)","v":"dec "},{"$f":"LOWER('Mesečni proračun za študij'!O27)","v":"leto  "}]
[null,null,"Vrednost drsnega traka: ",1]
[null,null,"Grafikon denarnega toka: ",{"$f":"IF(IzbranoObdobje='Mesečni proračun za študij'!C$31,IF('Mesečni proračun za študij'!$C$28:$O$28>=0,'Mesečni proračun za študij'!$C$28:$O$28,NA()),NA())","v":69},{"$f":"IF(IzbranoObdobje='Mesečni proračun za študij'!D$31,IF('Mesečni proračun za študij'!$C$28:$O$28>=0,'Mesečni proračun za študij'!$C$28:$O$28,NA()),NA())","v":{"$error":"#N/A"}},{"$f":"IF(IzbranoObdobje='Mesečni proračun za študij'!E$31,IF('Mesečni proračun za študij'!$C$28:$O$28>=0,'Mesečni proračun za študij'!$C$28:$O$28,NA()),NA())","v":{"$error":"#N/A"}},{"$f":"IF(IzbranoObdobje='Mesečni proračun za študij'!F$31,IF('Mesečni proračun za študij'!$C$28:$O$28>=0,'Mesečni proračun za študij'!$C$28:$O$28,NA()),NA())","v":{"$error":"#N/A"}},{"$f":"IF(IzbranoObdobje='Mesečni proračun za študij'!G$31,IF('Mesečni proračun za študij'!$C$28:$O$28>=0,'Mesečni proračun za študij'!$C$28:$O$28,NA()),NA())","v":{"$error":"#N/A"}},{"$f":"IF(IzbranoObdobje='Mesečni proračun za študij'!H$31,IF('Mesečni proračun za študij'!$C$28:$O$28>=0,'Mesečni proračun za študij'!$C$28:$O$28,NA()),NA())","v":{"$error":"#N/A"}},{"$f":"IF(IzbranoObdobje='Mesečni proračun za študij'!I$31,IF('Mesečni proračun za študij'!$C$28:$O$28>=0,'Mesečni proračun za študij'!$C$28:$O$28,NA()),NA())","v":{"$error":"#N/A"}},{"$f":"IF(IzbranoObdobje='Mesečni proračun za študij'!J$31,IF('Mesečni proračun za študij'!$C$28:$O$28>=0,'Mesečni proračun za študij'!$C$28:$O$28,NA()),NA())","v":{"$error":"#N/A"}},{"$f":"IF(IzbranoObdobje='Mesečni proračun za študij'!K$31,IF('Mesečni proračun za študij'!$C$28:$O$28>=0,'Mesečni proračun za študij'!$C$28:$O$28,NA()),NA())","v":{"$error":"#N/A"}},{"$f":"IF(IzbranoObdobje='Mesečni proračun za študij'!L$31,IF('Mesečni proračun za študij'!$C$28:$O$28>=0,'Mesečni proračun za študij'!$C$28:$O$28,NA()),NA())","v":{"$error":"#N/A"}},{"$f":"IF(IzbranoObdobje='Mesečni proračun za študij'!M$31,IF('Mesečni proračun za študij'!$C$28:$O$28>=0,'Mesečni proračun za študij'!$C$28:$O$28,NA()),NA())","v":{"$error":"#N/A"}},{"$f":"IF(IzbranoObdobje='Mesečni proračun za študij'!N$31,IF('Mesečni proračun za študij'!$C$28:$O$28>=0,'Mesečni proračun za študij'!$C$28:$O$28,NA()),NA())","v":{"$error":"#N/A"}},{"$f":"IF(IzbranoObdobje='Mesečni proračun za študij'!O$31,IF('Mesečni proračun za študij'!$C$28:$O$28>=0,'Mesečni proračun za študij'!$C$28:$O$28,NA()),NA())","v":{"$error":"#N/A"}}]
[null,null,"Kumulativno: ",{"$f":"IF(IzbranoObdobje='Mesečni proračun za študij'!C$31,IF('Mesečni proračun za študij'!$C$28:$O$28<0,'Mesečni proračun za študij'!$C$28:$O$28,NA()),NA())","v":{"$error":"#N/A"}},{"$f":"IF(IzbranoObdobje='Mesečni proračun za študij'!D$31,IF('Mesečni proračun za študij'!$C$28:$O$28<0,'Mesečni proračun za študij'!$C$28:$O$28,NA()),NA())","v":{"$error":"#N/A"}},{"$f":"IF(IzbranoObdobje='Mesečni proračun za študij'!E$31,IF('Mesečni proračun za študij'!$C$28:$O$28<0,'Mesečni proračun za študij'!$C$28:$O$28,NA()),NA())","v":{"$error":"#N/A"}},{"$f":"IF(IzbranoObdobje='Mesečni proračun za študij'!F$31,IF('Mesečni proračun za študij'!$C$28:$O$28<0,'Mesečni proračun za študij'!$C$28:$O$28,NA()),NA())","v":{"$error":"#N/A"}},{"$f":"IF(IzbranoObdobje='Mesečni proračun za študij'!G$31,IF('Mesečni proračun za študij'!$C$28:$O$28<0,'Mesečni proračun za študij'!$C$28:$O$28,NA()),NA())","v":{"$error":"#N/A"}},{"$f":"IF(IzbranoObdobje='Mesečni proračun za študij'!H$31,IF('Mesečni proračun za študij'!$C$28:$O$28<0,'Mesečni proračun za študij'!$C$28:$O$28,NA()),NA())","v":{"$error":"#N/A"}},{"$f":"IF(IzbranoObdobje='Mesečni proračun za študij'!I$31,IF('Mesečni proračun za študij'!$C$28:$O$28<0,'Mesečni proračun za študij'!$C$28:$O$28,NA()),NA())","v":{"$error":"#N/A"}},{"$f":"IF(IzbranoObdobje='Mesečni proračun za študij'!J$31,IF('Mesečni proračun za študij'!$C$28:$O$28<0,'Mesečni proračun za študij'!$C$28:$O$28,NA()),NA())","v":{"$error":"#N/A"}},{"$f":"IF(IzbranoObdobje='Mesečni proračun za študij'!K$31,IF('Mesečni proračun za študij'!$C$28:$O$28<0,'Mesečni proračun za študij'!$C$28:$O$28,NA()),NA())","v":{"$error":"#N/A"}},{"$f":"IF(IzbranoObdobje='Mesečni proračun za študij'!L$31,IF('Mesečni proračun za študij'!$C$28:$O$28<0,'Mesečni proračun za študij'!$C$28:$O$28,NA()),NA())","v":{"$error":"#N/A"}},{"$f":"IF(IzbranoObdobje='Mesečni proračun za študij'!M$31,IF('Mesečni proračun za študij'!$C$28:$O$28<0,'Mesečni proračun za študij'!$C$28:$O$28,NA()),NA())","v":{"$error":"#N/A"}},{"$f":"IF(IzbranoObdobje='Mesečni proračun za študij'!N$31,IF('Mesečni proračun za študij'!$C$28:$O$28<0,'Mesečni proračun za študij'!$C$28:$O$28,NA()),NA())","v":{"$error":"#N/A"}},{"$f":"IF(IzbranoObdobje='Mesečni proračun za študij'!O$31,IF('Mesečni proračun za študij'!$C$28:$O$28<0,'Mesečni proračun za študij'!$C$28:$O$28,NA()),NA())","v":{"$error":"#N/A"}}]
[]
[]
[null,null,"PODATKI GRAFIKONA ZA PRIHODKE"]
[null,null,"Pridobljena finančna pomoč (skladi, štipendije, posojila)",{"$f":"'Mesečni proračun za študij'!P32","v":{"v":0,"d":"0.0%"}}]
[null,null,"Plače po obdavčitvi",{"$f":"'Mesečni proračun za študij'!P33","v":{"v":0.3673469387755102,"d":"36.7%"}}]
[null,null,"Finančna pomoč družine",{"$f":"'Mesečni proračun za študij'!P34","v":{"v":0.16326530612244897,"d":"16.3%"}}]
[null,null,"Dvig prihrankov",{"$f":"'Mesečni proračun za študij'!P35","v":{"v":0.40816326530612246,"d":"40.8%"}}]
[null,null,"Drugo (preživnina, državna podpora, darila itd.)",{"$f":"'Mesečni proračun za študij'!P36","v":{"v":0.061224489795918366,"d":"6.1%"}}]